fUSD/lending_fUSD_20240823
["ID","MTS","AMOUNT","RATE_DAILY","PERIOD"]
[335663888,1724406649384,-1825.11,0.00010989,2]
[335663889,1724406649394,-1825.11,0.00010989,2]
[335663890,1724406649404,-1825.11,0.00010989,2]
[335663891,1724406649414,-610.49,0.00010989,2]
[335663892,1724406649423,-610.49,0.00010989,2]
[335663893,1724406649432,-610.49,0.00010989,2]
[335663894,1724406649442,-573.76,0.00010989,2]
[335663895,1724406649456,-573.76,0.00010989,2]
[335663896,1724406649467,-573.76,0.00010989,2]
[335663897,1724406649476,-500.0,0.00010989,2]
[335663898,1724406649486,-607.17,0.00010989,2]
[335663899,1724406649495,-1494.24,0.00010989,2]
[335663900,1724406649504,-1494.24,0.00010989,2]
[335663901,1724406649513,-1494.24,0.00010989,2]
[335663902,1724406649523,-2145.87,0.00010989,2]
[335663903,1724406649533,-2145.87,0.00010989,2]
[335663904,1724406649543,-2145.87,0.00010989,2]
[335663905,1724406649553,-1132.28,0.00010989,2]
[335663906,1724406649562,-1132.28,0.00010989,2]
[335663907,1724406649572,-1132.28,0.00010989,2]
[335663908,1724406649581,-612.21887937,0.00010989,2]
[335663909,1724406649591,-513.31424791,0.00010989,2]
[335663910,1724406649601,-791.77,0.00010989,2]
[335663911,1724406649612,-791.77,0.00010989,2]
[335663912,1724406649622,-791.77,0.00010989,2]
[335663913,1724406649631,-1135.61,0.00010989,2]
[335663914,1724406649641,-1135.61,0.00010989,2]
[335663915,1724406649650,-1135.61,0.00010989,2]
[335663916,1724406649659,-500.0,0.00010989,2]
[335663917,1724406649669,-500.0,0.00010989,2]
[335663918,1724406649681,-742.06,0.00010989,2]
[335663919,1724406649690,-500.0,0.00010989,2]
[335663920,1724406649700,-742.06,0.00010989,2]
[335663921,1724406649714,-742.06,0.00010989,2]
[335663922,1724406649730,-572.42,0.00010989,2]
[335663923,1724406649745,-572.42,0.00010989,2]
[335663924,1724406649758,-500.0,0.00010989,2]
[335663925,1724406649772,-572.42,0.00010989,2]
[335663926,1724406649787,-500.0,0.00010989,2]
[335663927,1724406649802,-500.0,0.00010989,2]
[335663928,1724406649817,-500.0,0.00010989,2]
[335663929,1724406649831,-500.0,0.00010989,2]
[335663930,1724406649845,-500.0,0.00010989,2]
[335663931,1724406649858,-1618.16,0.00010989,2]
[335663932,1724406649873,-1618.16,0.00010989,2]
[335663933,1724406649886,-1618.16,0.00010989,2]
[335663934,1724406649897,-807.98,0.00010989,2]
[335663935,1724406649911,-807.98,0.00010989,2]
[335663936,1724406649924,-807.98,0.00010989,2]
[335663937,1724406649940,-500.0,0.00010989,2]
[335663938,1724406649956,-500.0,0.00010989,2]
[335663939,1724406649970,-500.0,0.00010989,2]
[335663940,1724406649981,-822.38,0.00010989,2]
[335663941,1724406649994,-822.38,0.00010989,2]
[335663942,1724406650010,-822.38,0.00010989,2]
[335663943,1724406650024,-500.0,0.00010989,2]
[335663944,1724406650037,-500.0,0.00010989,2]
[335663945,1724406650050,-500.0,0.00010989,2]
[335663946,1724406650066,-500.0,0.00010989,2]
[335663947,1724406650080,-500.0,0.00010989,2]
[335663948,1724406650091,-500.0,0.00010989,2]
[335663949,1724406650103,-500.0,0.00010989,2]
[335663950,1724406650118,-500.0,0.00010989,2]
[335663951,1724406650131,-500.0,0.00010989,2]
[335663952,1724406650144,-4798.83,0.00010989,2]
[335663953,1724406650158,-4798.83,0.00010989,2]
[335663954,1724406650171,-4798.83,0.00010989,2]
[335663955,1724406650184,-3362.04,0.00010989,2]
[335663956,1724406650198,-3362.04,0.00010989,2]
[335663957,1724406650210,-3362.04,0.00010989,2]
[335663958,1724406650223,-500.0,0.00010989,2]
[335663959,1724406650236,-500.0,0.00010989,2]
[335663960,1724406650249,-500.0,0.00010989,2]
[335663961,1724406650263,-701.57,0.00010989,2]
[335663962,1724406650277,-701.57,0.00010989,2]
[335663963,1724406650289,-701.57,0.00010989,2]
[335663964,1724406650302,-500.0,0.00010989,2]
[335663965,1724406650315,-500.0,0.00010989,2]
[335663966,1724406650328,-500.0,0.00010989,2]
[335663967,1724406650340,-500.0,0.00010989,2]
[335663968,1724406650356,-500.0,0.00010989,2]
[335663969,1724406650369,-500.0,0.00010989,2]
[335663970,1724406650383,-238.40573676,0.00010989,2]
[335663971,1724406650397,-500.0,0.00010989,2]
[335663972,1724406650409,-500.0,0.00010989,2]
[335663973,1724406650422,-500.0,0.00010989,2]
[335663974,1724406650435,-500.0,0.00010989,2]
[335663975,1724406650448,-500.0,0.00010989,2]
[335663976,1724406650461,-500.0,0.00010989,2]
[335663977,1724406650474,-2117.25,0.00010989,2]
[335663978,1724406650487,-2117.25,0.00010989,2]
[335663979,1724406650500,-2117.25,0.00010989,2]
[335663980,1724406650513,-500.17,0.00010989,2]
[335663981,1724406650525,-500.17,0.00010989,2]
[335663982,1724406650537,-500.17,0.00010989,2]
[335663983,1724406650550,-768.97,0.00010989,2]
[335663984,1724406650563,-768.97,0.00010989,2]
[335663985,1724406650576,-768.97,0.00010989,2]
[335663986,1724406650589,-504.21327246,0.00010989,2]
[335663987,1724406650601,-500.0,0.00010989,2]
[335663988,1724406650614,-500.0,0.00010989,2]
[335663989,1724406650626,-500.0,0.00010989,2]
[335663990,1724406650640,-950.79,0.00010989,2]
[335663991,1724406650652,-950.79,0.00010989,2]
[335663992,1724406650665,-950.79,0.00010989,2]
[335663993,1724406650681,-2697.02,0.00010989,2]
[335663994,1724406650694,-2697.02,0.00010989,2]
[335663995,1724406650709,-2697.02,0.00010989,2]
[335663996,1724406650723,-975.23,0.00010989,2]
[335663997,1724406650735,-975.23,0.00010989,2]
[335663998,1724406650747,-351.41883404,0.00010989,2]
[335663999,1724406650762,-975.23,0.00010989,2]
[335664000,1724406650775,-500.0,0.00010989,2]
[335664001,1724406650788,-500.0,0.00010989,2]
[335664002,1724406650800,-500.0,0.00010989,2]
[335664003,1724406650813,-957.65,0.00010989,2]
[335664004,1724406650826,-957.65,0.00010989,2]
[335664005,1724406650838,-957.65,0.00010989,2]
[335664006,1724406650851,-867.66,0.00010989,2]
[335664007,1724406650865,-867.66,0.00010989,2]
[335664008,1724406650878,-867.66,0.00010989,2]
[335664009,1724406650891,-500.0,0.00010989,2]
[335664010,1724406650903,-500.0,0.00010989,2]
[335664011,1724406650916,-500.0,0.00010989,2]
[335664012,1724406650928,-590.8,0.00010989,2]
[335664013,1724406650941,-590.8,0.00010989,2]
[335664014,1724406650956,-590.8,0.00010989,2]
[335664015,1724406650969,-500.0,0.00010989,2]
[335664016,1724406650981,-500.0,0.00010989,2]
[335664017,1724406650994,-500.0,0.00010989,2]
[335664018,1724406651007,-500.0,0.00010989,2]
[335664019,1724406651020,-500.0,0.00010989,2]
[335664020,1724406651033,-500.0,0.00010989,2]
[335664021,1724406651045,-660.27,0.00010989,2]
[335664022,1724406651058,-660.27,0.00010989,2]
[335664023,1724406651070,-660.27,0.00010989,2]
[335664024,1724406651083,-4204.34,0.00010989,2]
[335664025,1724406651095,-4204.34,0.00010989,2]
[335664026,1724406651108,-4204.34,0.00010989,2]
[335664027,1724406651121,-2120.38,0.00010989,2]
[335664028,1724406651133,-2120.38,0.00010989,2]
[335664029,1724406651146,-2120.38,0.00010989,2]
[335664030,1724406651159,-500.0,0.00010989,2]
[335664031,1724406651172,-500.0,0.00010989,2]
[335664032,1724406651186,-500.0,0.00010989,2]
[335664033,1724406651201,-500.0,0.00010989,2]
[335664034,1724406651214,-500.0,0.00010989,2]
[335664035,1724406651227,-500.0,0.00010989,2]
[335664036,1724406651239,-4981.21,0.00010989,2]
[335664037,1724406651252,-4981.21,0.00010989,2]
[335664038,1724406651263,-4981.21,0.00010989,2]
[335664039,1724406651272,-716.37,0.00010989,2]
[335664040,1724406651282,-716.37,0.00010989,2]
[335664041,1724406651291,-716.37,0.00010989,2]
[335664042,1724406651301,-500.0,0.00010989,2]
[335664043,1724406651311,-500.0,0.00010989,2]
[335664044,1724406651320,-546.2298721,0.00010989,2]
[335664045,1724406651329,-1040.96,0.00010989,2]
[335664046,1724406651339,-1040.96,0.00010989,2]
[335664047,1724406651348,-1040.96,0.00010989,2]
[335664048,1724406651358,-4286.48,0.00010989,2]
[335664049,1724406651639,-4286.48,0.00010989,2]
[335664050,1724406651660,-4286.48,0.00010989,2]
[335664051,1724406651671,-1142.04,0.00010989,2]
[335664052,1724406651685,-1142.04,0.00010989,2]
[335664053,1724406651695,-1142.04,0.00010989,2]
[335664054,1724406651705,-1152.68,0.00010989,2]
[335664055,1724406651715,-1152.68,0.00010989,2]
[335664056,1724406651725,-1152.68,0.00010989,2]
[335664057,1724406651734,-920.87,0.00010989,2]
[335664058,1724406651743,-920.87,0.00010989,2]
[335664059,1724406651754,-920.87,0.00010989,2]
[335664060,1724406651763,-795.89,0.00010989,2]
[335664061,1724406651772,-795.89,0.00010989,2]
[335664062,1724406651781,-795.89,0.00010989,2]
[335664063,1724406651791,-500.0,0.00010989,2]
[335664064,1724406651800,-500.0,0.00010989,2]
[335664065,1724406651809,-500.0,0.00010989,2]
[335664066,1724406651819,-1170.17,0.00010989,2]
[335664067,1724406651828,-1170.17,0.00010989,2]
[335664068,1724406651838,-917.98,0.00010989,2]
[335664069,1724406651847,-1170.17,0.00010989,2]
[335664070,1724406651856,-917.98,0.00010989,2]
[335664071,1724406651866,-917.98,0.00010989,2]
[335664072,1724406651875,-1078.31,0.00010989,2]
[335664073,1724406651884,-1327.69,0.00010989,2]
[335664074,1724406651894,-1078.31,0.00010989,2]
[335664075,1724406651903,-1078.31,0.00010989,2]
[335664076,1724406651912,-1327.69,0.00010989,2]
[335664077,1724406651922,-1327.69,0.00010989,2]
[335664078,1724406651932,-2940.88,0.00010989,2]
[335664079,1724406651941,-2940.88,0.00010989,2]
[335664080,1724406651952,-2940.88,0.00010989,2]
[335664081,1724406651961,-500.0,0.00010989,2]
[335664082,1724406651971,-500.0,0.00010989,2]
[335664083,1724406651980,-500.0,0.00010989,2]
[335664084,1724406651989,-1059.21,0.00010989,2]
[335664085,1724406651998,-1059.21,0.00010989,2]
[335664086,1724406652007,-894.74,0.00010989,2]
[335664087,1724406652017,-894.74,0.00010989,2]
[335664088,1724406652026,-894.74,0.00010989,2]
[335664089,1724406652035,-1059.21,0.00010989,2]
[335664090,1724406652045,-2666.26,0.00010989,2]
[335664091,1724406652054,-2666.26,0.00010989,2]
[335664092,1724406652063,-2666.26,0.00010989,2]
[335664093,1724406652073,-1063.66,0.00010989,2]
[335664094,1724406652082,-1063.66,0.00010989,2]
[335664095,1724406652091,-1063.66,0.00010989,2]
[335664096,1724406652101,-695.3,0.00010989,2]
[335664097,1724406652110,-695.3,0.00010989,2]
[335664098,1724406652119,-695.3,0.00010989,2]
[335664099,1724406652129,-500.0,0.00010989,2]
[335664100,1724406652138,-500.0,0.00010989,2]
[335664101,1724406652148,-500.0,0.00010989,2]
[335664102,1724406652157,-1209.21,0.00010989,2]
[335664103,1724406652166,-1209.21,0.00010989,2]
[335664104,1724406652175,-1209.21,0.00010989,2]
[335664105,1724406652184,-848.28,0.00010989,2]
[335664106,1724406652194,-848.28,0.00010989,2]
[335664107,1724406652204,-848.28,0.00010989,2]
[335664108,1724406652213,-15999.6,0.00010989,2]
[335664109,1724406652223,-15999.6,0.00010989,2]
[335664110,1724406652232,-15999.6,0.00010989,2]
[335664111,1724406652241,-500.0,0.00010989,2]
[335664112,1724406652250,-500.0,0.00010989,2]
[335664113,1724406652259,-500.0,0.00010989,2]
[335664114,1724406652269,-500.0,0.00010989,2]
[335664115,1724406652278,-500.0,0.00010989,2]
[335664116,1724406652287,-500.0,0.00010989,2]
[335664117,1724406652296,-5000.0,0.00010989,2]
[335664118,1724406652305,-5000.0,0.00010989,2]
[335664119,1724406652314,-5000.0,0.00010989,2]
[335664120,1724406652324,-682.13,0.00010989,2]
[335664121,1724406652333,-682.13,0.00010989,2]
[335664122,1724406652342,-682.13,0.00010989,2]
[335664123,1724406652351,-1508.69661,0.00010989,2]
[335664124,1724406652360,-2214.2168227,0.00010989,2]
[335664125,1724406652370,-500.0,0.00010989,2]
[335664126,1724406652379,-640.18559139,0.00010989,2]
[335664127,1724406652389,-42415.710085,0.0001099,4]
[335664128,1724406652400,-2905.53992152,0.0001099,2]
[335664129,1724406652409,-19418.54,0.00010991,2]
[335664130,1724406652418,-1857.33,0.00010991,2]
[335664131,1724406652427,-2081.86,0.00010991,2]
[335664132,1724406652436,-500.0,0.00010991,2]
[335664133,1724406652446,-1581.21,0.00010991,2]
[335664134,1724406652456,-1054.49,0.00010991,2]
[335664135,1724406652465,-500.0,0.00010991,2]
[335664136,1724406652474,-513.55,0.00010991,2]
[335664137,1724406652484,-500.0,0.00010991,2]
[335664138,1724406652493,-500.0,0.00010991,2]
[335664139,1724406652502,-661.23,0.00010991,2]
[335664140,1724406652512,-500.0,0.00010991,2]
[335664141,1724406652521,-4145.58,0.00010991,2]
[335664142,1724406652531,-1365.29,0.00010991,2]
[335664143,1724406652541,-958.7,0.00010991,2]
[335664144,1724406652550,-1353.91,0.00010992,2]
[335664145,1724406652559,-746.2,0.00010992,2]
[335664146,1724406652569,-730.13,0.00010992,2]
[335664147,1724406652578,-704.18,0.00010992,2]
[335664148,1724406652588,-639.38,0.00010992,2]
[335664149,1724406652597,-666.85,0.00010992,2]
[335664150,1724406652606,-830.54,0.00010992,2]
[335664151,1724406652615,-805.9,0.00010992,2]
[335664152,1724406652625,-1180.22,0.00010992,2]
[335664153,1724406652634,-784.32,0.00010992,2]
[335664154,1724406652643,-718.26,0.00010992,2]
[335664155,1724406652652,-940.93,0.00010992,2]
[335664156,1724406652662,-500.0,0.00010992,2]
[335664157,1724406652673,-500.0,0.00010992,2]
[335664158,1724406652684,-837.68,0.00010992,2]
[335664159,1724406652694,-907.92,0.00010992,2]
[335664160,1724406652705,-848.38,0.00010992,2]
[335664161,1724406652714,-500.0,0.00010992,2]
[335664162,1724406652725,-767.55,0.00010992,2]
[335664163,1724406652734,-892.25,0.00010992,2]
[335664164,1724406652744,-500.0,0.00010992,2]
[335664165,1724406652755,-637.47,0.00010992,2]
[335664166,1724406652764,-688.56,0.00010992,2]
[335664167,1724406652774,-500.0,0.00010992,2]
[335664168,1724406652784,-658.18,0.00010992,2]
[335664169,1724406652793,-545.07829988,0.00010992,2]
[335664170,1724406652803,-891.21,0.00010992,2]
[335664171,1724406652812,-837.79,0.00010992,2]
[335664172,1724406652822,-11311.29,0.00010992,2]
[335664173,1724406652832,-530.23,0.00010992,2]
[335664174,1724406652842,-730.46,0.00010992,2]
[335664175,1724406652851,-1031.51,0.00010992,2]
[335664176,1724406652860,-500.0,0.00010992,2]
[335664177,1724406652870,-763.46,0.00010992,2]
[335664178,1724406652880,-674.76,0.00010992,2]
[335664179,1724406652889,-3094.28,0.00010992,2]
[335664180,1724406652899,-500.0,0.00010992,2]
[335664181,1724406652909,-832.4,0.00010992,2]
[335664182,1724406652919,-730.94,0.00010992,2]
[335664183,1724406652929,-875.98,0.00010992,2]
[335664184,1724406652938,-744.46,0.00010992,2]
[335664185,1724406652947,-1561.82,0.00010992,2]
[335664186,1724406652959,-410.35,0.00010992,2]
[335664187,1724406652970,-318.39823954,0.00010992,2]
[335664188,1724406652979,-500.0,0.00010992,2]
[335664189,1724406652988,-687.52,0.00010992,2]
[335664190,1724406652997,-500.0,0.00010992,2]
[335664191,1724406653007,-1718.86,0.00010992,2]
[335664192,1724406653017,-500.0,0.00010992,2]
[335664193,1724406653026,-792.92,0.00010992,2]
[335664194,1724406653035,-2237.24,0.00010992,2]
[335664195,1724406653045,-500.0,0.00010992,2]
[335664196,1724406653054,-1604.16,0.00010992,2]
[335664197,1724406653064,-500.0,0.00010992,2]
[335664198,1724406653074,-1519.35,0.00010993,2]
[335664199,1724406653083,-500.0,0.00010993,2]
[335664200,1724406653092,-1463.39,0.00010993,2]
[335664201,1724406653101,-500.0,0.00010993,2]
[335664202,1724406653111,-500.0,0.00010993,2]
[335664203,1724406653121,-5531.66,0.00010993,2]
[335664204,1724406653130,-3934.93,0.00010993,2]
[335664205,1724406653140,-2329.67,0.00010993,2]
[335664206,1724406653150,-443.87296454,0.00010993,2]
[335664207,1724406653159,-1248.73,0.00010993,2]
[335664208,1724406653168,-1466.63,0.00010993,2]
[335664209,1724406653178,-2331.37,0.00010993,2]
[335664210,1724406653187,-678.89,0.00010993,2]
[335664211,1724406653196,-2746.66,0.00010993,2]
[335664212,1724406653206,-500.0,0.00010993,2]
[335664213,1724406653216,-931.71,0.00010993,2]
[335664214,1724406653225,-1061.25,0.00010993,2]
[335664215,1724406653234,-703.69,0.00010993,2]
[335664216,1724406653245,-1654.87,0.00010993,2]
[335664217,1724406653254,-500.0,0.00010993,2]
[335664218,1724406653263,-2238.14,0.00010993,2]
[335664219,1724406653273,-1079.11,0.00010993,2]
[335664220,1724406653282,-792.52,0.00010993,2]
[335664221,1724406653292,-1127.29,0.00010993,2]
[335664222,1724406653301,-611.8,0.00010993,2]
[335664223,1724406653310,-1360.02,0.00010993,2]
[335664224,1724406653320,-1592.41,0.00010993,2]
[335664225,1724406653330,-500.0,0.00010993,2]
[335664226,1724406653339,-4554.27,0.00010993,2]
[335664227,1724406653349,-500.0,0.00010993,2]
[335664228,1724406653359,-1141.36,0.00010993,2]
[335664229,1724406653368,-500.0,0.00010993,2]
[335664230,1724406653378,-1261.79,0.00010993,2]
[335664231,1724406653387,-1899.01,0.00010993,2]
[335664232,1724406653397,-1120.32,0.00010993,2]
[335664233,1724406653407,-500.0,0.00010993,2]
[335664234,1724406653417,-5287.76,0.00010993,2]
[335664235,1724406653426,-500.0,0.00010993,2]
[335664236,1724406653436,-529.88324494,0.00010993,2]
[335664237,1724406653445,-1718.86,0.00010993,2]
[335664238,1724406653454,-2651.29,0.00010993,2]
[335664239,1724406653464,-714.42,0.00010993,2]
[335664240,1724406653474,-5772.31,0.00010993,2]
[335664241,1724406653483,-500.0,0.00010993,2]
[335664242,1724406653493,-709.53,0.00010993,2]
[335664243,1724406653502,-2237.24,0.00010993,2]
[335664244,1724406653512,-1604.16,0.00010993,2]
[335664245,1724406653521,-3050.71,0.00010993,2]
[335664246,1724406653531,-698.51,0.00010994,2]
[335664247,1724406653540,-846.2,0.00010994,2]
[335664248,1724406653550,-500.0,0.00010994,2]
[335664249,1724406653560,-500.0,0.00010994,2]
[335664250,1724406653570,-2281.48,0.00010994,2]
[335664251,1724406653579,-1825.11,0.00010994,2]
[335664252,1724406653589,-610.49,0.00010994,2]
[335664253,1724406653599,-1353.91,0.00010994,2]
[335664254,1724406653608,-1494.24,0.00010994,2]
[335664255,1724406653618,-746.2,0.00010994,2]
[335664256,1724406653628,-730.13,0.00010994,2]
[335664257,1724406653638,-542.74,0.00010994,2]
[335664258,1724406653649,-791.77,0.00010994,2]
[335664259,1724406653659,-1135.61,0.00010994,2]
[335664260,1724406653669,-704.18,0.00010994,2]
[335664261,1724406653682,-500.0,0.00010994,2]
[335664262,1724406653693,-572.42,0.00010994,2]
[335664263,1724406653704,-500.0,0.00010994,2]
[335664264,1724406653715,-639.38,0.00010994,2]
[335664265,1724406653725,-4385.31,0.00010994,2]
[335664266,1724406653734,-500.0,0.00010994,2]
[335664267,1724406653744,-1618.16,0.00010994,2]
[335664268,1724406653755,-500.0,0.00010994,2]
[335664269,1724406653765,-822.38,0.00010994,2]
[335664270,1724406653775,-188.97340807,0.00010994,2]
[335664271,1724406653784,-641.33,0.00010994,2]
[335664272,1724406653794,-666.85,0.00010994,2]
[335664273,1724406653804,-500.0,0.00010994,2]
[335664274,1724406653814,-4798.83,0.00010994,2]
[335664275,1724406653823,-3362.04,0.00010994,2]
[335664276,1724406653833,-500.0,0.00010994,2]
[335664277,1724406653843,-830.54,0.00010994,2]
[335664278,1724406653853,-805.9,0.00010994,2]
[335664279,1724406653864,-701.57,0.00010994,2]
[335664280,1724406653874,-500.0,0.00010994,2]
[335664281,1724406653883,-1180.22,0.00010994,2]
[335664282,1724406653892,-500.0,0.00010994,2]
[335664283,1724406653902,-638.17,0.00010994,2]
[335664284,1724406653911,-500.0,0.00010994,2]
[335664285,1724406653920,-500.0,0.00010994,2]
[335664286,1724406653930,-2117.25,0.00010994,2]
[335664287,1724406653939,-500.17,0.00010994,2]
[335664288,1724406653949,-784.32,0.00010994,2]
[335664289,1724406653959,-768.97,0.00010994,2]
[335664290,1724406653968,-500.0,0.00010994,2]
[335664291,1724406653977,-950.79,0.00010994,2]
[335664292,1724406653986,-718.26,0.00010994,2]
[335664293,1724406653996,-940.93,0.00010994,2]
[335664294,1724406654006,-2697.02,0.00010994,2]
[335664295,1724406654015,-975.23,0.00010994,2]
[335664296,1724406654024,-187.07559045,0.00010994,2]
[335664297,1724406654034,-500.0,0.00010994,2]
[335664298,1724406654043,-186.33415011,0.00010994,2]
[335664299,1724406654053,-837.68,0.00010994,2]
[335664300,1724406654063,-907.92,0.00010994,2]
[335664301,1724406654073,-957.65,0.00010994,2]
[335664302,1724406654082,-997.33,0.00010994,2]
[335664303,1724406654092,-867.66,0.00010994,2]
[335664304,1724406654101,-500.0,0.00010994,2]
[335664305,1724406654110,-590.8,0.00010994,2]
[335664306,1724406654120,-500.0,0.00010994,2]
[335664307,1724406654129,-544.76,0.00010994,2]
[335664308,1724406654139,-574.22,0.00010994,2]
[335664309,1724406654150,-848.38,0.00010994,2]
[335664310,1724406654160,-500.0,0.00010994,2]
[335664311,1724406654170,-660.27,0.00010994,2]
[335664312,1724406654180,-500.0,0.00010994,2]
[335664313,1724406654190,-1553.62,0.00010994,2]
[335664314,1724406654201,-19418.54,0.00010994,2]
[335664315,1724406654210,-5007.75,0.00010994,2]
[335664316,1724406654220,-767.55,0.00010994,2]
[335664317,1724406654231,-1857.33,0.00010994,2]
[335664318,1724406654241,-892.25,0.00010994,2]
[335664319,1724406654250,-500.0,0.00010994,2]
[335664320,1724406654260,-500.0,0.00010994,2]
[335664321,1724406654270,-637.47,0.00010994,2]
[335664322,1724406654280,-776.13,0.00010994,2]
[335664323,1724406654289,-688.56,0.00010994,2]
[335664324,1724406654299,-500.0,0.00010994,2]
[335664325,1724406654308,-721.7,0.00010994,2]
[335664326,1724406654318,-716.37,0.00010994,2]
[335664327,1724406654327,-500.0,0.00010994,2]
[335664328,1724406654337,-1520.94,0.00010994,2]
[335664329,1724406654347,-658.18,0.00010994,2]
[335664330,1724406654357,-500.0,0.00010994,2]
[335664331,1724406654366,-2081.86,0.00010994,2]
[335664332,1724406654376,-891.21,0.00010994,2]
[335664333,1724406654386,-1416.28,0.00010994,2]
[335664334,1724406654395,-500.0,0.00010994,2]
[335664335,1724406654405,-792.18,0.00010994,2]
[335664336,1724406654415,-837.79,0.00010994,2]
[335664337,1724406654425,-1142.04,0.00010994,2]
[335664338,1724406654435,-1581.21,0.00010994,2]
[335664339,1724406654445,-11311.29,0.00010994,2]
[335664340,1724406654458,-920.87,0.00010994,2]
[335664341,1724406654467,-795.89,0.00010994,2]
[335664342,1724406654477,-1054.49,0.00010994,2]
[335664343,1724406654487,-530.23,0.00010994,2]
[335664344,1724406654497,-1557.99,0.00010994,2]
[335664345,1724406654508,-730.46,0.00010994,2]
[335664346,1724406654518,-931.71,0.00010994,2]
[335664347,1724406654528,-1061.25,0.00010994,2]
[335664348,1724406654538,-1170.17,0.00010994,2]
[335664349,1724406654548,-917.98,0.00010994,2]
[335664350,1724406654558,-1654.87,0.00010994,2]
[335664351,1724406654568,-322.17021052,0.00010994,2]
[335664352,1724406654577,-1031.51,0.00010994,2]
[335664353,1724406654587,-1078.31,0.00010994,2]
[335664354,1724406654597,-500.0,0.00010994,2]
[335664355,1724406654607,-1891.85,0.00010994,2]
[335664356,1724406654617,-2238.14,0.00010994,2]
[335664357,1724406654627,-763.46,0.00010994,2]
[335664358,1724406654636,-500.0,0.00010994,2]
[335664359,1724406654646,-500.0,0.00010994,2]
[335664360,1724406654655,-1079.11,0.00010994,2]
[335664361,1724406654664,-792.52,0.00010994,2]
[335664362,1724406654677,-896.38,0.00010994,2]
[335664363,1724406654686,-1127.29,0.00010994,2]
[335664364,1724406654696,-674.76,0.00010994,2]
[335664365,1724406654708,-1360.02,0.00010994,2]
[335664366,1724406654718,-894.74,0.00010994,2]
[335664367,1724406654873,-3094.28,0.00010994,2]
[335664368,1724406654883,-513.55,0.00010994,2]
[335664369,1724406654892,-1592.41,0.00010994,2]
[335664370,1724406654902,-1120.76,0.00010994,2]
[335664371,1724406654911,-500.0,0.00010994,2]
[335664372,1724406654920,-832.4,0.00010994,2]
[335664373,1724406654929,-500.0,0.00010994,2]
[335664374,1724406654939,-580.7032656,0.00010994,2]
[335664375,1724406654948,-2666.26,0.00010994,2]
[335664376,1724406654960,-730.94,0.00010994,2]
[335664377,1724406654971,-875.98,0.00010994,2]
[335664378,1724406654979,-500.0,0.00010994,2]
[335664379,1724406654989,-865.23,0.00010994,2]
[335664380,1724406654999,-1141.36,0.00010994,2]
[335664381,1724406655008,-500.0,0.00010994,2]
[335664382,1724406655018,-1678.89,0.00010994,2]
[335664383,1724406655030,-695.3,0.00010994,2]
[335664384,1724406655039,-744.46,0.00010994,2]
[335664385,1724406655049,-500.0,0.00010994,2]
[335664386,1724406655059,-500.0,0.00010994,2]
[335664387,1724406655069,-932.13,0.00010994,2]